Cogmind - Beta 14 @@@ ROGUE MODE // 2024.08.15 @ 13:51:00 Player: Zaros426 Result: Destroyed by G-34 Mercenary with Small Laser Performance ------------- Evolutions (0) 0 Regions Visited (1) 200 Robots Destroyed (7) 35 Value Destroyed (75) 75 Prototype IDs (0) 0 Alien Tech Used (0) 0 Bonus (0) 0 TOTAL SCORE: 310 Bonus ------- None Cogmind --------- Core Integrity 0/250 Matter 211/300 Energy 99/100 System Corruption 9% Temperature Cool (6) Movement Core (100) Ox1 Location -10/Materials Parts ------- > --- POWER (1) -------- (None) > --- PROPULSION (2) --- (None) > --- UTILITY (2) ------ Small Storage Unit > --- WEAPON (2) ------- (None) > --- INVENTORY (8) ---- Assault Rifle Peak State ------------ > --- POWER ------------ Ion Engine > --- PROPULSION ------- Light Treads Light Treads > --- UTILITY ---------- Small Storage Unit Seismic Detector > --- WEAPON ----------- Medium Laser Assault Rifle > --- INVENTORY -------- (None) [Rating: 7] Favorites ----------- Power Ion Engine Engine Ion Engine Propulsion Light Treads Treads Light Treads Utility Small Storage Unit Device Seismic Detector Storage Small Storage Unit Weapon Medium Laser Energy Gun Medium Laser Ballistic Gun Assault Rifle Launcher Grenade Launcher Build | -11 -10 ------- Run | Yrd Mat Slots Evolved . | . . Power . | . . Propulsion . | . . Utility . | . . Weapon . | . . Parts Attached 8 | 7 1 Power 1 | 1 . Engine 1 | 1 . Core . | . . Reactor . | . . Propulsion 2 | 2 . Treads 2 | 2 . Leg . | . . Wheel . | . . Hover . | . . Flight . | . . Utility 2 | 2 . Device 1 | 1 . Storage 1 | 1 . Processor . | . . Hackware . | . . Protection . | . . Artifact . | . . Weapon 3 | 2 1 Energy Gun 1 | 1 . Energy Cannon . | . . Ballistic Gun 1 | 1 . Ballistic Cannon . | . . Launcher 1 | . 1 Special Weapon . | . . Impact Weapon . | . . Slashing Weapon . | . . Piercing Weapon . | . . Special Melee Weapon . | . . Unidentified Prototypes . | . . Parts Lost 5 | . 5 Power 1 | . 1 Propulsion 1 | . 1 Utility 1 | . 1 Weapon 2 | . 2 Highest Loss Streak 4 | . 4 To Critical Strikes . | . . Average Slot Usage (%) 57 | . 57 Engine 3 | . 3 Treads 26 | . 26 Device 3 | . 3 Storage 14 | . 14 Energy Gun 4 | . 4 Ballistic Gun 2 | . 2 Launcher 2 | . 2 Peak Build Rating 7 | 7 7 Average Rating 4 | 5 4 On Entrance 3 | . 7 Naked Turns . | . . Heaviest Build 16 | 15 16 Greatest Support 40 | 40 40 Greatest Overweight (x) 1 | . 1 Average Overweight (x) . | . . Largest Inventory Capacity 8 | 8 8 Average Capacity 7 | 6 8 Most Carried 1 | 1 1 Average Carried . | . . Final Capacity 8 | 8 8 Final Carried 1 | . 1 Class Distribution -------------------- 100% | Mutant Dominant Class ---------------- Mutant | -10/Materials Resources | -11 -10 ----------- Run | Yrd Mat Matter Collected 261 | 261 . Remotely . | . . Salvage Created 77 | 40 37 Parts 16 | 8 8 Haulers Intercepted . | . . Recyclers Shooed . | . . Parts Field Recycled . | . . Retrieved Matter . | . . Parts Self-Destructed . | . . Prevented . | . . Kills | -11 -10 ------- Run | Yrd Mat Combat Hostiles Destroyed 3 | . 3 AOE 3 | . 3 Classes Destroyed 4 | 1 3 Builder 1 | . 1 Tunneler 2 | 2 . Watcher 1 | . 1 Swarmer 3 | . 3 Best Kill Streak 5 | 2 5 Combat Bots Only 3 | . 3 Max Kills in Single Turn 2 | 1 2 Gunslinging . | . . Exploded 1 | . 1 Melee . | . . Uniques/NPCs Destroyed . | . . Combat | -11 -10 -------- Run | Yrd Mat Hostile Shots Fired 38 | . 38 Missed 6 | . 6 Damage Taken 713 | . 713 Core 257 | . 257 Absorbed by Shields . | . . Core Remaining (%) 100 | 100 . Volleys Fired 13 | 4 9 Largest 2 | 2 2 Hottest 80 | 70 80 Shots Fired 21 | 8 13 Gun 13 | 8 5 Cannon . | . . Launcher 8 | . 8 Special . | . . Kinetic 4 | 4 . Thermal 9 | 4 5 Explosive 8 | . 8 Electromagnetic . | . . Robot Hit Streak 3 | 3 1 Robot Miss Streak 4 | 2 4 Penetration Max . | . . Secondary Targets . | . . Shots Hit Robots 8 | 6 2 Core Hits 10 | 3 7 Critical Kills . | . . Critical Parts Destroyed . | . . Critical Strikes . | . . Melee Attacks . | . . Impact . | . . Slashing . | . . Piercing . | . . Sneak Attacks . | . . Combat Hostiles . | . . Follow-up Attacks . | . . Damage Inflicted 313 | 73 240 Guns 86 | 73 13 Cannons . | . . Explosions 220 | . 220 Melee . | . . Ramming 7 | . 7 Kinetic 35 | 35 . Thermal 51 | 38 13 Explosive 220 | . 220 Electromagnetic . | . . Impact . | . . Slashing . | . . Piercing . | . . Highest Corruption 9 | . 9 Average Corruption 9 | . 9 Corruption Purged . | . . Corruption Blocked . | . . Effects 10 | . 10 Message Errors 1 | . 1 Matter Fused 3 | . 3 Heat Flow Errors 1 | . 1 Energy Discharges 2 | . 2 Data Loss (minor) 2 | . 2 Alerts 1 | . 1 Overload Shots . | . . Overflow Damage . | . . Projectiles . | . . Explosions . | . . Melee . | . . Knockbacks . | . . Impact . | . . Kinetic . | . . Secondary . | . . Self-Inflicted Damage 101 | . 101 Shots 3 | . 3 Rammed 7 | . 7 Targets Rammed 7 | . 7 Kicked . | . . Crushed . | . . Highest Temperature 163 | 27 163 Average Temperature 26 | 12 34 Received Heat Transfer 138 | . 138 Siege Activations . | . . Robots Corrupted . | . . Combat Hostiles . | . . Parts Fried . | . . Impact Corruptions . | . . Robots Melted . | . . Combat Hostiles . | . . Parts Melted . | . . Heat Transferred 148 | 111 37 Parts Sabotaged . | . . Parts Stolen . | . . Parts Stripped . | . . Power Chain Reactions . | . . Alert | -11 -10 ------- Run | Yrd Mat Peak Influence 100 | 10 100 Initial 6 | . 6 Average 55 | 3 69 Maximum Alert Level . | . . Low Security (%) 100 | 100 100 Level 1 . | . . Level 2 . | . . Level 3 . | . . Level 4 . | . . Level 5 . | . . High Security . | . . Max Security . | . . Squads Dispatched . | . . Investigation . | . . Extermination . | . . Reinforcement . | . . Assault . | . . Garrison . | . . Intercept . | . . Searches Triggered . | . . Construction Impeded . | . . Haulers Reinforced . | . . Active Scanning Responses . | . . Cargo Convoy Interrupts . | . . Stealth | -11 -10 --------- Run | Yrd Mat Distress Signals 1 | . 1 Communications Jammed . | . . Distress Signals . | . . Times Spotted 10 | . 10 Peak Tracking Total 4 | . 4 Tactical Retreats . | . . Traps | -11 -10 ------- Run | Yrd Mat Traps Triggered 1 | . 1 Indirectly . | . . Trap Hack Attempts . | . . Triggered . | . . Disarmed . | . . Reprogrammed . | . . Reused . | . . Traps Extracted . | . . Installed . | . . Triggered . | . . Machines | -11 -10 ---------- Run | Yrd Mat Machines Disabled 1 | . 1 Max in Single Turn 1 | . 1 Machines Repaired . | . . Machines Dismantled . | . . Machines Sabotaged . | . . Overloaded Fab Kills . | . . Hacking | -11 -10 --------- Run | Yrd Mat Machines Accessed 1 | . 1 Terminals 1 | . 1 Fabricators . | . . Repair Stations . | . . Recycling Units . | . . Scanalyzers . | . . Garrison Access . | . . Total Hacks 2 | . 2 Successful 1 | . 1 Failed 1 | . 1 Catastrophic . | . . Database Lockouts . | . . Manual . | . . Terminals 2 | . 2 Fabricators . | . . Repair Stations . | . . Recycling Units . | . . Scanalyzers . | . . Garrison Access . | . . Terminal Hacks 1 | . 1 Robot Analysis 1 | . 1 Fabricator Hacks . | . . Repair Station Hacks . | . . Recycling Unit Hacks . | . . Scanalyzer . | . . Garrison Access Hacks . | . . Unauthorized Hacks . | . . Terminals . | . . Fabricators . | . . Repair Stations . | . . Recycling Units . | . . Scanalyzers . | . . Garrison Access . | . . Data Cores Recovered . | . . Used . | . . Hacking Detections 1 | . 1 Full Trace Events . | . . Feedback Events . | . . Feedback Blocked . | . . Robot Schematics Acquired . | . . Robots Built . | . . Authchips . | . . Time . | . . Total Robot Build Rating . | . . Part Schematics Acquired . | . . Parts Built . | . . Authchips . | . . Time . | . . Total Part Build Rating . | . . Parts Repaired . | . . Time . | . . Parts Recycled . | . . Recycled Matter . | . . Retrieved Matter . | . . Retrieved Components . | . . Parts Scanalyzed . | . . Part Schematics Acquired . | . . Parts Damaged . | . . Bothacking | -11 -10 ------------ Run | Yrd Mat Used RIF Installer . | . . Robots Hacked . | . . Non-combat . | . . Combat . | . . Robot Hacks Applied . | . . Relay Couplers Released . | . . Fabnet Peak Effective % . | . . Robots Rewired . | . . Allies Hacked . | . . Hacks Repelled . | . . Allies | -11 -10 -------- Run | Yrd Mat Total Allies . | . . Largest Group . | . . Highest-Rated Group . | . . Highest-Rated Ally . | . . Total Orders . | . . Ally Attacks . | . . Total Damage . | . . Kills . | . . Allies Corrupted . | . . Allies Melted . | . . Intel | -11 -10 ------- Run | Yrd Mat Robot Analysis Total 1 | . 1 Derelict Logs Recovered . | . . Drone Launches . | . . Drone Recoveries . | . . Exploration | -11 -10 ------------- Run | Yrd Mat Turns Passed 523 | 115 408 Spaces Moved 168 | 60 108 Core 5 | 3 2 Treads 163 | 57 106 Legs . | . . Wheels . | . . Hover . | . . Flight . | . . Fastest Speed 50 | 50 100 Average Speed 157 | 154 158 Slowest Speed 160 | 160 160 Overloaded Moves . | . . Propulsion Burnouts . | . . Robots Hopped . | . . Cave-ins Triggered 1 | . 1 Exploration Rate (%) 18 | 5 31 Regions Visited 1 Branch Regions . Pre-discovered Areas . | . . Known Exits Taken . | . . Unknown Exits Taken 1 | 1 . Scrap Searched . | . . Spaces Dug 8 | . 8 Terrain Destroyed 25 | . 25 Melee . | . . Projectile . | . . AOE 25 | . 25 Terrain Rammed . | . . Walls Destroyed . | . . Machines Disabled . | . . Actions | -11 -10 --------- Run | Yrd Mat Total 399 | 71 328 Wait 202 | . 202 Move 167 | 59 108 Hop . | . . Pick Up 2 | 1 1 Fast Attach 6 | 6 . Attach 1 | 1 . Detach . | . . Swap 1 | . 1 Drop . | . . Fire 13 | 4 9 Melee . | . . Ram 2 | . 2 Kick . | . . Crush 5 | . 5 Escape Stasis . | . . Rewire . | . . Trap . | . . Miscellaneous . | . . Route ------- -11/Scrapyard -10/Materials History --------- Turn | Location | Event 8 | -11/Scrapyard | Discovered new exit (range 15) 116 | -11/Scrapyard | Entered Materials 229 | -10/Materials | Crushed by falling debris 229 | -10/Materials | Core integrity fell below 50% 280 | -10/Materials | Lost 4 parts (1p1u2w) 313 | -10/Materials | Build established: Mutant 513 | -10/Materials | Core integrity fell below 20% 524 | -10/Materials | Destroyed by G-34 Mercenary with Small Laser Last Messages --------------- 00450_ K-01 Serf cleans the Purification Channel. 00453_ U-05 Engineer lays Concrete. 00466_ Slammed into U-05 Engineer. 00466_ U-05 Engineer builds a Wall. 00483_ U-05 Engineer lays Concrete. 00486_ System corrupted: Heat flow error (+188). 00488_ W-16 Scout sends out distress signal. 00490_ Slammed into U-05 Engineer. 00493_ U-05 Engineer builds a Wall. 00493_ Triggered Blade Trap. 00493_ Massive razor-sharp blades shoot up from within the floor. 00493_ Lgt. Treads severed. 00498_ U-05 Engineer builds a Wall. 00505_ U-05 Engineer lays Concrete. 00514_ System corrupted: Matter fused (-7). 00514_ Slammed into G-34 Mercenary. 00519_ Lgt. Treads destroyed. 00521_ Slammed into G-34 Mercenary. Map ----- +----------------------------------------------------+ | ?????????????????????????????????????????????????? | | ?????????????????????????????????????????????????? | | ?????????????????????????????????????????????????? | | ?????????????????????????????????????????????????? | | ???????? ???? ??????????????????????????????????? | | ??????? ? ????????????????????????????????? | | ??????# ????????????????????????????????? | | ??#### !| ????????????????????????????????? | | ?? ! || ?????????????????????????????????? | | ? # ??????????????????????????????????? | | ? #######+########???????????????????????????? | | ?" " # ???????????????????????????? | | ?"Y" # #???????????????????????????? | | ??"" + " #???????????????????????????? | | ####### """ #######?????????????????????? | | # "" # ????????????"?????????? | | # """ ??????????? ?????????? | | "" = # "" ?????????? ????????? | | "T / """ ??????????" ""????????? | | "" # "" """ #??????????? ""????????? | | # "" """ #?????????? w """ ??????? | | ####### " " #????????? ?????? | | ######### ????????? | | ####### = #???????????????? | | ??????###+####+####### ggw #???????????????? | | ????????????? ????# @ #???????????????? | | ?????????????""" ???# t #???????????????? | | ####???????? """ ???######### #???????????????? | | #???????? """ ???????????? #???????????????? | | " #??????? ???????????? #???????????????? | | " #??????? """ ???????????? #???????????????? | | " #??????# "T ???????????? #???????????????? | | #??????# ??? ? ???????????? #???????????????? | | " #??????#?????? #???????????? #???????????????? | | " #??????????????##???????????? #???????????????? | | " #?????????????????????????????#???????????????? | | #?????????????????????????????????????????????? | | " #?????????????????????????????????????????????? | | " #?????????????????????????????????????????????? | | " #?????????????????????????????????????????????? | | #?????????????????????????????????????????????? | | ####?????????????????????????????????????????????? | | "" #?????????????????????????????????????????????? | | T" #?????????????????????????????????????????????? | | #?????????????????????????????????????????????? | | = #?????????????????????????????????????????????? | | == #?????????????????????????????????????????????? | | = #?????????????????????????????????????????????? | | #?????????????????????????????????????????????? | | "" #?????????????????????????????????????????????? | +----------------------------------------------------+ Best States ------------- Heat Dissipation 25 Energy Generation 10 Energy Capacity 250 Matter Stores 279 Matter Capacity 300 Sight Range 16 Terrain Scan Density 10 Evasion (%) 40 Recoil Reduction 2 Item Schematics ----------------- None Robot Schematics ------------------ None Fabricated ------------ Nothing Alien Tech Used ----------------- None Achievements -------------- None Challenges ------------ None Game ------ Seed CatalystProcessingCannon Manual? 0 Play Time 00:04:40 Cumulative 10.6 hours Start 2024.08.15 @ 13:45:28 End 2024.08.15 @ 13:51:00 Sessions 1 Manual Loads 0 Difficulty Rogue Special Mode None Game No. 9 Rogue 9 Adventurer 0 Explorer 0 Win Type - Total 0 Types 0/0/0/0/0/0/0/0/0 Lore% 9 Gallery% 14 Achievement% 23 Wizard Run 0 Options --------- Layout 1 ASCII 0 Keyboard 0 Movement Numpad Keybinds 0 Fullscreen 1 Font 24/Smallcaps Map View 50x35 Zoom Use 1% Tactical HUD 1 Map Filters NONE Filters NONE Steam 0 RUN: 1a85abba-0258-4870-8b4b-9174df24ead0